bitfinex/quotes_ETHUSD_20250715
["timestamp","ask_amount","ask_price","bid_price","bid_amount"]
[1752574935533,5.2682,2978.5,2978.4,0.001]
[1752574936643,5.7184,2978.5,2978.4,0.001]
[1752574936817,9.07579466,2978.5,2978.4,0.001]
[1752574937119,5.7184,2978.5,2978.4,0.001]
[1752574937623,9.07579466,2978.5,2978.4,0.001]
[1752574938918,9.90069466,2978.5,2978.4,0.001]
[1752574940021,6.0921,2978.5,2978.4,0.001]
[1752574940220,0.1672,2978.5,2978.4,0.001]
[1752574940386,5.2662,2978.5,2978.4,0.001]
[1752574942197,8.62359466,2978.5,2978.4,0.001]
[1752574942410,5.2662,2978.5,2978.4,0.001]
[1752574944325,5.7164,2978.5,2978.4,0.001]
[1752574944990,9.07379466,2978.5,2978.4,0.001]
[1752574946226,5.7164,2978.5,2978.4,0.001]
[1752574946448,5.2662,2978.5,2978.4,0.001]
[1752574948601,9.07379466,2978.5,2978.4,0.001]
[1752574950750,0.6174,2978.5,2978.4,0.001]
[1752574950904,9.07279466,2978.5,2978.4,0.001]
[1752574951323,5.7154,2978.5,2978.4,0.001]
[1752574951522,0.6174,2978.5,2978.4,0.001]
[1752574951886,0.1672,2978.5,2978.4,0.001]
[1752574952359,5.2652,2978.5,2978.4,0.001]
[1752574956350,0.1672,2978.5,2978.4,0.001]
[1752574956530,0.1672,2978.5,2978.4,4.59800738]
[1752574956706,8.061,2978.7,2978.6,3.35728194]
[1752574956907,13.159,2978.7,2978.6,9.85442587]
[1752574957245,8.061,2978.7,2978.6,21.09292587]
[1752574957404,2.33013281,2978.7,2978.6,21.09292587]
[1752574957604,0.002,2979.8,2979.0,0.7895]
[1752574957806,5.098,2979.7,2979.3,6.49714393]
[1752574958108,5.098,2979.7,2979.4,3.80530755]
[1752574959009,5.098,2979.7,2979.4,3.80534273]
[1752574959740,5.098,2979.7,2979.4,0.449]
[1752574959916,0.1672,2979.4,2979.2,10.449]
[1752574960255,0.1672,2979.4,2979.3,3.80548182]
[1752574960547,5.098,2979.4,2979.3,3.80548182]
[1752574962734,0.31521968,2979.8,2979.4,3.35636324]
[1752574962913,5.097,2979.7,2979.4,3.35636324]
[1752574963109,5.097,2979.7,2979.5,3.35623958]
[1752574963333,5.097,2979.6,2979.5,3.35623958]
[1752574964352,5.097,2979.6,2979.5,3.80523958]
[1752574964537,0.002,2979.8,2979.6,3.35612122]
[1752574964865,5.097,2979.7,2979.6,0.449]
[1752574965630,5.097,2979.7,2979.6,3.80515518]
[1752574968351,5.097,2979.7,2979.6,0.449]
[1752574968552,5.097,2979.7,2979.4,0.8236]
[1752574968553,0.1672,2979.6,2979.4,4.62888828]
[1752574968759,5.097,2979.5,2979.4,4.62888828]
[1752574969869,5.097,2979.5,2979.4,14.62888828]
[1752574973536,5.097,2979.5,2979.0,0.7747]
[1752574973737,0.6077,2979.4,2979.1,3.35661073]
[1752574973937,0.6077,2979.4,2979.2,3.35659352]
[1752574973938,0.4405,2979.4,2979.2,3.35659352]
[1752574974265,0.1672,2979.2,2979.1,3.35666579]
[1752574974572,5.2632,2979.2,2979.1,13.35666579]
[1752574974774,5.2632,2979.2,2979.1,10.0]
[1752574975072,5.2632,2979.2,2978.8,0.449]
[1752574975271,5.096,2979.2,2979.0,3.35678144]
[1752574976142,5.096,2979.2,2979.0,3.35677707]
[1752574976873,0.1672,2979.0,2978.9,3.35688225]
[1752574977077,5.5365,2979.2,2978.9,3.35688225]
[1752574977273,0.1672,2978.9,2978.8,13.35705653]
[1752574977479,5.2632,2978.9,2978.8,13.35705653]
[1752574978036,5.2632,2978.9,2978.5,13.35732789]
[1752574979545,1.2048,2978.5,2978.4,0.001]
[1752574980159,1.2048,2978.5,2978.4,3.35850738]
[1752574980341,0.7756,2978.5,2978.4,3.35850738]
[1752574980541,5.097,2978.5,2978.4,3.35850738]
[1752574980748,5.097,2978.5,2978.4,0.001]
[1752574981075,5.5262,2978.5,2978.4,0.001]
[1752574981657,5.5262,2978.5,2978.4,3.35850738]
[1752574981859,5.5262,2978.5,2978.4,0.001]
[1752574983176,6.3473,2978.5,2978.4,0.001]
[1752574983752,17.76469466,2978.5,2978.4,0.001]
[1752574984276,14.4073,2978.5,2978.4,0.001]
[1752574984444,17.76469466,2978.5,2978.4,0.001]
[1752574985187,14.4073,2978.5,2978.4,0.001]
[1752574985349,17.76469466,2978.5,2978.4,0.001]
[1752574985743,14.4073,2978.5,2978.4,0.001]
[1752574987972,9.3103,2978.5,2978.4,0.001]
[1752574988194,14.4073,2978.5,2978.4,0.001]
[1752574989107,13.157,2978.5,2978.4,0.001]
[1752574989307,8.06,2978.5,2978.4,3.35850738]
[1752574989612,13.157,2978.5,2978.4,3.35850738]
[1752574990783,8.2272,2978.5,2978.4,3.35850738]
[1752574991006,8.2272,2978.5,2978.4,4.60770738]
[1752574991328,13.3242,2978.5,2978.4,0.001]
[1752574991523,13.7534,2978.5,2978.4,0.001]
[1752574991810,17.11079466,2978.5,2978.4,0.001]
[1752574994106,17.89809466,2978.5,2978.4,0.001]
[1752574999900,17.46889466,2978.5,2978.4,0.001]
[1752575000089,17.89809466,2978.5,2978.4,0.001]
[1752575000292,17.89909466,2978.5,2978.4,0.001]
[1752575001257,8.2272,2978.5,2978.4,0.001]
[1752575001404,13.3252,2978.5,2978.4,0.001]
[1752575004663,13.3252,2978.5,2978.4,0.4535]
[1752575004857,13.3252,2978.5,2978.4,0.001]
[1752575005200,8.2272,2978.5,2978.4,3.35850738]
[1752575005408,13.3252,2978.5,2978.4,3.81100738]
[1752575007460,8.2272,2978.5,2978.4,3.81100738]
[1752575007686,13.3252,2978.5,2978.4,3.81100738]
[1752575009137,13.3252,2978.5,2978.4,4.61620738]
[1752575009325,13.3252,2978.5,2978.4,14.61620738]
[1752575010956,13.3252,2978.5,2978.4,14.16370738]
[1752575011460,13.3252,2978.5,2978.4,14.60660738]
[1752575014687,13.158,2978.5,2978.4,14.60660738]
[1752575014991,5.098,2978.5,2978.4,14.60660738]
[1752575023097,5.098,2978.5,2978.4,21.10107907]
[1752575023294,0.002,2978.7,2978.6,3.35728194]
[1752575023594,0.002,2978.7,2978.6,14.71198194]
[1752575023759,5.099,2978.7,2978.6,15.32208194]
[1752575026905,5.099,2978.7,2978.6,14.60488194]
[1752575028299,5.099,2978.7,2978.6,13.35728194]
[1752575028862,5.099,2978.7,2978.6,19.85175363]
[1752575029286,5.099,2978.7,2978.6,20.29465363]
[1752575032739,5.099,2978.7,2978.6,10.0]
[1752575033031,5.099,2978.7,2978.5,0.001]
[1752575033032,5.7235,2978.7,2978.5,3.35837938]
[1752575033373,5.2662,2978.7,2978.5,0.001]
[1752575033572,1.2245,2978.6,2978.5,0.001]
[1752575035378,5.2662,2978.7,2978.5,3.35839466]
[1752575035870,5.2662,2978.7,2978.5,0.001]
[1752575036070,0.4573,2978.6,2978.5,0.001]
[1752575037251,1.2701,2978.6,2978.5,0.001]
[1752575037930,4.62738194,2978.6,2978.5,0.001]
[1752575042904,9.72438194,2978.6,2978.5,0.001]
[1752575044204,6.3671,2978.6,2978.5,0.001]
[1752575045174,9.72438194,2978.6,2978.5,0.001]
[1752575052055,9.26708194,2978.6,2978.5,0.001]
[1752575052401,9.73738194,2978.6,2978.5,0.001]
[1752575052768,0.8128,2978.6,2978.5,0.001]
[1752575053124,6.3811,2978.6,2978.5,0.001]
[1752575053275,9.73838194,2978.6,2978.5,0.001]
[1752575053634,6.3811,2978.6,2978.5,0.001]
[1752575054614,9.73838194,2978.6,2978.5,0.001]
[1752575054818,6.3811,2978.6,2978.5,0.001]
[1752575055769,5.9108,2978.6,2978.5,0.001]
[1752575056375,5.098,2978.6,2978.5,0.001]
[1752575057524,8.2312,2978.7,2978.6,3.35728194]
[1752575057752,13.3292,2978.7,2978.6,3.82998194]
[1752575057957,13.3292,2978.7,2978.5,3.35835486]
[1752575059355,13.3292,2978.7,2978.6,3.35728194]
[1752575059932,13.3292,2978.7,2978.6,3.82998194]
[1752575060133,13.3292,2978.7,2978.6,3.35728194]
[1752575060321,13.3292,2978.7,2978.5,3.35835662]
[1752575061430,13.3292,2978.7,2978.6,3.35728194]
[1752575061650,13.3292,2978.7,2978.5,3.83104107]
[1752575062956,13.3292,2978.7,2978.6,3.35728194]
[1752575063366,13.3292,2978.7,2978.6,3.82998194]
[1752575064153,8.2312,2978.7,2978.6,3.82998194]
[1752575064453,13.3282,2978.7,2978.6,3.82998194]
[1752575065071,8.2312,2978.7,2978.6,3.82998194]
[1752575065368,13.161,2978.7,2978.6,3.82998194]
[1752575065573,8.064,2978.7,2978.6,4.58518194]
[1752575065736,13.161,2978.7,2978.6,4.58518194]
[1752575065934,13.161,2978.7,2978.6,14.58518194]
[1752575067680,5.099,2978.7,2978.6,14.58518194]
[1752575068387,5.099,2978.7,2978.6,3.35728194]
[1752575069166,5.099,2978.7,2978.5,13.35837503]
[1752575069981,5.099,2978.7,2978.5,10.001]
[1752575070184,5.099,2978.7,2978.5,0.001]
[1752575070887,0.4571,2978.6,2978.5,0.001]
[1752575073263,4.57598194,2978.6,2978.5,0.001]
[1752575073904,1.2187,2978.6,2978.5,0.001]
[1752575074600,4.57598194,2978.6,2978.5,0.001]
[1752575075694,3.35922468,2978.7,2978.5,0.001]
[1752575075893,5.097,2978.6,2978.5,0.001]
[1752575081803,5.097,2978.6,2978.5,3.79443536]
[1752575083702,0.002,2978.7,2978.6,3.35728194]
[1752575083905,5.099,2978.7,2978.6,3.35728194]
[1752575084205,0.002,2978.7,2978.6,3.79338194]
[1752575084395,5.099,2978.7,2978.6,4.54588194]
[1752575085205,0.002,2978.7,2978.6,4.54588194]
[1752575085509,5.099,2978.7,2978.6,4.54588194]
[1752575085728,0.002,2978.7,2978.6,4.10978194]
[1752575086023,5.2662,2978.7,2978.6,4.54588194]
[1752575091327,0.1692,2978.7,2978.6,14.54588194]
[1752575091500,5.098,2978.7,2978.6,14.54588194]
[1752575092042,8.061,2979.0,2978.9,14.12804383]
[1752575092327,13.157,2979.0,2978.9,14.56414383]
[1752575095633,0.002,2979.8,2979.3,10.0]
[1752575095822,0.1692,2979.8,2979.7,3.35604255]
[1752575096023,5.2652,2979.8,2979.4,1.1955]
[1752575096221,0.4571,2979.7,2979.6,3.35615518]
[1752575097135,0.4571,2979.7,2979.1,0.7642]
[1752575097346,5.096,2979.6,2979.4,3.35637759]
[1752575097590,0.4571,2979.5,2979.2,3.35654438]
[1752575097727,0.7576,2979.3,2979.0,3.35672869]
[1752575097895,0.1672,2979.1,2978.6,3.35717936]
[1752575098242,11.87356212,2979.4,2978.5,0.001]
[1752575098243,0.1672,2978.8,2978.5,0.001]
[1752575098396,5.099,2978.7,2978.5,3.35833513]
[1752575098592,5.5561,2978.7,2978.5,3.35833513]
[1752575099102,5.5561,2978.7,2978.5,0.001]
[1752575099614,0.4735,2978.6,2978.5,0.001]
[1752575100014,1.2563,2978.6,2978.5,0.001]
[1752575100237,4.61358194,2978.6,2978.5,0.001]
[1752575100438,4.14008194,2978.6,2978.5,0.001]
[1752575100641,4.61358194,2978.6,2978.5,0.001]
[1752575101516,6.3573,2978.6,2978.5,0.001]
[1752575104146,1.2442,2978.9,2978.5,0.001]
[1752575104353,0.1672,2978.6,2978.5,3.35839466]
[1752575104613,5.2742,2978.6,2978.5,3.35839466]
[1752575107874,5.2742,2978.6,2978.5,0.001]
[1752575108050,5.7477,2978.6,2978.5,0.001]
[1752575108914,9.93498194,2978.6,2978.5,0.001]
[1752575114370,4.82798194,2978.6,2978.5,0.001]
[1752575114668,9.93298194,2978.6,2978.5,0.001]
[1752575116118,4.82798194,2978.6,2978.5,0.001]
[1752575116513,9.93198194,2978.6,2978.5,0.001]
[1752575117147,4.82798194,2978.6,2978.5,0.001]
[1752575117351,9.93198194,2978.6,2978.5,0.001]
[1752575118177,4.82798194,2978.6,2978.5,0.001]
[1752575118460,9.93198194,2978.6,2978.5,0.001]
[1752575119157,4.82798194,2978.6,2978.5,0.001]
[1752575119351,9.93098194,2978.6,2978.5,0.001]
[1752575126782,9.45448194,2978.6,2978.5,0.001]
[1752575126992,9.92798194,2978.6,2978.5,0.001]
[1752575131049,4.82798194,2978.6,2978.5,0.001]
[1752575131392,9.92898194,2978.6,2978.5,0.001]
[1752575131753,8.62548194,2978.6,2978.5,0.001]
[1752575131957,9.07258194,2978.6,2978.5,0.001]
[1752575135438,3.97158194,2978.6,2978.5,0.001]
[1752575135639,9.07158194,2978.6,2978.5,0.001]
[1752575136043,8.62448194,2978.6,2978.5,0.001]
[1752575136243,16.68748194,2978.6,2978.5,0.001]
[1752575136403,8.2302,2978.6,2978.5,0.001]
[1752575136739,13.3302,2978.6,2978.5,0.441]
[1752575139527,13.3302,2978.6,2978.5,0.001]
[1752575139728,16.68748194,2978.6,2978.5,0.001]
[1752575140316,17.91718194,2978.6,2978.5,0.001]
[1752575140516,16.68748194,2978.6,2978.5,0.001]
[1752575140715,11.58748194,2978.6,2978.5,0.001]
[1752575140917,16.68748194,2978.6,2978.5,0.001]
[1752575141335,13.3322,2978.6,2978.5,0.001]
[1752575141808,16.68948194,2978.6,2978.5,0.001]
[1752575142221,17.13658194,2978.6,2978.5,0.001]
[1752575144637,16.68948194,2978.6,2978.5,0.001]
[1752575145517,13.3312,2978.6,2978.5,0.001]
[1752575145709,13.3312,2978.6,2978.5,0.441]
[1752575147127,8.2302,2978.6,2978.5,0.441]
[1752575147480,13.3312,2978.6,2978.5,0.441]
[1752575148268,13.3312,2978.6,2978.5,3.79839466]
[1752575148468,8.2302,2978.6,2978.5,3.79839466]
[1752575148767,13.3332,2978.6,2978.5,4.59369466]
[1752575150929,13.3332,2978.6,2978.5,1.2363]
[1752575151680,13.3332,2978.6,2978.5,0.441]
[1752575151863,13.3332,2978.6,2978.5,0.001]
[1752575152345,16.69048194,2978.6,2978.5,0.001]
[1752575152866,13.3332,2978.6,2978.5,0.001]
[1752575154879,14.1258,2978.6,2978.5,0.001]
[1752575155033,13.3332,2978.6,2978.5,0.001]
[1752575155369,13.3332,2978.6,2978.5,0.441]
[1752575156466,13.3332,2978.6,2978.5,3.79839466]
[1752575157445,13.3312,2978.6,2978.5,4.59289466]
[1752575159269,13.3312,2978.6,2978.5,1.2355]
[1752575161483,13.3312,2978.6,2978.5,0.001]
[1752575161685,13.3312,2978.6,2978.5,3.83159466]
[1752575163520,13.3292,2978.6,2978.5,4.59999466]
[1752575164089,8.2302,2978.6,2978.5,4.59999466]
[1752575164304,13.3312,2978.6,2978.5,4.59999466]
[1752575173949,8.2302,2978.6,2978.5,4.12679466]
[1752575174267,13.16,2978.6,2978.5,14.6335686]
[1752575174449,13.16,2978.6,2978.5,14.59999466]
[1752575175749,0.1672,2979.0,2978.9,4.11654383]
[1752575175952,0.1672,2979.3,2979.2,3.35655447]
[1752575176138,5.2642,2979.3,2979.2,3.35655447]
[1752575177011,5.2642,2979.3,2979.0,3.35675998]
[1752575177211,5.2642,2979.3,2979.2,3.3566058]
[1752575178282,0.1672,2979.3,2979.2,10.32427749]
[1752575178477,5.2642,2979.3,2979.2,10.32427749]
[1752575180061,8.061,2979.6,2979.5,3.35626783]
[1752575180386,13.158,2979.6,2979.5,3.82946783]
[1752575182461,13.158,2979.6,2979.5,10.32393952]
[1752575183669,13.158,2979.6,2979.5,21.09443952]
[1752575184075,13.158,2979.6,2979.5,13.35626783]
[1752575186401,13.158,2979.6,2979.5,13.82946783]
[1752575186565,13.158,2979.6,2979.5,13.35626783]
[1752575186888,0.1672,2979.5,2979.0,0.1672]
[1752575187096,5.098,2979.4,2979.2,10.0]
[1752575187250,5.2652,2979.4,2979.2,3.35652494]
[1752575187455,5.6945,2979.4,2979.2,3.35652494]
[1752575188014,5.6945,2979.4,2979.1,3.35669712]
[1752575188218,0.4293,2979.3,2979.0,3.35683115]
[1752575188383,5.099,2979.2,2979.1,10.0]
[1752575188779,5.099,2979.2,2979.1,13.35671847]
[1752575190102,5.099,2979.2,2979.1,13.83111847]
[1752575190796,5.2662,2979.2,2979.1,13.83111847]
[1752575192117,0.1672,2979.5,2979.4,3.35628332]
[1752575192322,5.2642,2979.5,2979.4,3.35628332]
[1752575192723,5.2642,2979.5,2979.2,0.4744]
[1752575192885,5.2642,2979.5,2979.1,10.0]
[1752575192886,5.2642,2979.5,2979.3,3.35647551]
[1752575193090,0.1672,2979.5,2979.4,3.35638047]
[1752575193317,5.2642,2979.5,2979.4,3.35638047]
[1752575194799,5.2642,2979.5,2979.3,3.35643215]
[1752575195002,5.2642,2979.5,2979.4,3.35638047]
[1752575195204,0.1672,2979.5,2979.4,3.35638047]
[1752575195416,5.2642,2979.5,2979.3,3.35643499]
[1752575196224,0.1672,2979.5,2979.4,3.35638047]
[1752575196624,5.2632,2979.5,2979.4,3.35638047]
[1752575198192,0.1672,2979.5,2979.4,3.35638047]
[1752575198721,5.2632,2979.5,2979.4,3.35638047]
[1752575200711,5.2632,2979.5,2979.3,3.35644168]
[1752575201232,0.4621,2979.4,2979.0,10.0]
[1752575201539,5.2632,2979.5,2978.9,10.0]
[1752575201540,6.3582,2979.3,2978.9,10.0]
[1752575201752,0.4621,2979.2,2978.9,10.0]
[1752575201944,0.1672,2978.9,2978.8,10.0]
[1752575202121,5.2632,2978.9,2978.8,10.0]
[1752575202324,5.2632,2978.9,2978.8,13.35705653]
[1752575203006,5.2632,2978.9,2978.8,13.83145653]
[1752575203217,5.2632,2978.9,2978.8,14.60385653]
[1752575203414,5.096,2978.9,2978.8,14.60385653]
[1752575204118,0.1672,2979.2,2979.1,3.35671847]
[1752575204316,0.1672,2979.2,2979.1,9.85119016]
[1752575204547,0.1672,2979.2,2979.1,10.32559016]
[1752575204713,5.2632,2979.2,2979.1,10.32559016]
[1752575206317,5.2632,2979.2,2979.1,6.96887169]
[1752575206654,5.2632,2979.2,2979.1,10.32559016]
[1752575206880,5.2632,2979.2,2979.1,3.83111847]
[1752575207173,5.2632,2979.2,2979.1,3.35671847]
[1752575208224,5.2632,2979.2,2979.1,3.83111847]
[1752575208818,5.2632,2979.2,2979.1,10.32559016]
[1752575209017,5.2632,2979.2,2979.1,20.32559016]
[1752575210866,5.096,2979.2,2979.1,20.32559016]
[1752575211518,0.1672,2979.4,2979.3,3.35649313]
[1752575211715,5.2632,2979.4,2979.3,3.35649313]
[1752575212465,0.1672,2979.4,2979.2,3.83096555]
[1752575212637,5.096,2979.3,2979.2,3.35656555]
[1752575214266,5.096,2979.3,2979.2,3.83096555]
[1752575215268,0.1672,2979.4,2979.3,3.35649313]
[1752575215467,5.2632,2979.4,2979.3,3.83089313]
[1752575216460,5.2632,2979.4,2979.2,3.35655477]
[1752575216661,5.2632,2979.4,2979.3,3.35649313]
[1752575217675,5.2632,2979.4,2979.3,3.83089313]
[1752575218069,0.1672,2979.4,2979.3,13.83089313]
[1752575218292,0.002,2979.5,2979.4,13.35638047]
[1752575218482,5.098,2979.5,2979.4,20.32525216]
[1752575228098,5.098,2979.5,2979.4,19.85085216]
[1752575228276,5.098,2979.5,2979.4,20.29825216]
[1752575239066,0.002,2979.5,2979.4,20.29825216]
[1752575239267,5.096,2979.5,2979.4,20.29825216]
[1752575244933,5.096,2979.5,2979.4,20.84825216]
[1752575245134,0.002,2979.5,2979.4,21.01545216]
[1752575245338,5.096,2979.5,2979.4,21.01545216]
[1752575249457,5.096,2979.5,2979.4,20.56805216]
[1752575249982,5.096,2979.5,2979.4,20.01805216]
[1752575252491,5.096,2979.5,2979.4,20.45895216]
[1752575252785,5.096,2979.5,2979.4,20.01805216]
[1752575252987,6.3116,2979.5,2979.4,3.35638047]
[1752575254450,5.8683,2979.5,2979.4,3.35638047]
[1752575255275,5.096,2979.5,2979.4,3.35638047]
[1752575257710,5.096,2979.5,2979.4,13.35638047]
[1752575258004,5.095,2979.5,2979.4,15.15688047]
[1752575258791,0.002,2979.5,2979.4,15.15688047]
[1752575258991,5.095,2979.5,2979.4,15.15688047]
[1752575259882,0.002,2979.7,2979.6,13.90615518]
[1752575260088,0.002,2979.7,2979.6,20.40062687]
[1752575260450,0.002,2979.7,2979.6,20.84152687]
[1752575260652,5.095,2979.7,2979.6,20.84152687]
[1752575261090,0.002,2979.8,2979.7,13.90604255]
[1752575261676,0.002,2979.8,2979.7,14.34694255]
[1752575262877,0.002,2979.8,2979.7,14.51414255]
[1752575270690,0.002,2979.8,2979.7,14.07324255]
[1752575274338,0.002,2979.8,2979.7,14.51414255]
[1752575275713,0.002,2979.8,2979.7,14.07324255]
[1752575277305,0.002,2979.8,2979.7,14.51414255]
[1752575277510,0.002,2979.8,2979.7,15.32394255]
[1752575278932,0.002,2979.8,2979.7,14.07324255]
[1752575286061,0.002,2979.8,2979.5,1.2507]
[1752575286062,1.4676,2979.8,2979.5,3.35615972]
[1752575286268,1.4676,2979.8,2979.6,3.35611856]
[1752575286452,0.4737,2979.7,2979.6,3.35611856]
[1752575290122,0.4737,2979.7,2979.4,3.35630982]
[1752575290322,5.091,2979.6,2979.5,10.0]
[1752575290650,5.5647,2979.6,2979.5,10.0]
[1752575290851,5.5647,2979.6,2979.5,10.001]
[1752575291028,5.5647,2979.6,2979.5,0.001]
[1752575291227,5.5647,2979.6,2979.5,10.001]
[1752575291567,5.5647,2979.6,2979.5,3.35726783]
[1752575293376,5.5647,2979.6,2979.5,13.35726783]
[1752575295677,0.1692,2979.8,2979.7,3.35604255]
[1752575295825,5.093,2979.8,2979.7,3.35604255]
[1752575296988,0.775,2979.7,2979.5,13.35721261]
[1752575297295,0.4737,2979.6,2979.5,13.35721261]
[1752575298104,1.4159,2979.7,2979.6,3.35615518]
[1752575298248,1.4159,2979.7,2979.5,13.35722369]
[1752575298249,0.9422,2979.7,2979.5,13.35722369]
[1752575298440,0.4737,2979.6,2979.5,13.35722369]
[1752575298642,0.9422,2979.7,2979.5,13.35722369]
[1752575300388,0.9422,2979.7,2979.6,3.35615518]
[1752575300793,0.9422,2979.7,2979.5,10.001]
[1752575301097,0.9422,2979.7,2979.5,13.35723708]
[1752575301310,0.9422,2979.7,2979.5,10.001]
[1752575301492,4.15195518,2979.6,2979.5,0.001]
[1752575302308,5.8868,2979.6,2979.5,0.001]
[1752575303639,6.3605,2979.6,2979.5,0.001]
[1752575304981,1.2695,2979.6,2979.5,0.001]
[1752575305298,6.3605,2979.6,2979.5,0.001]
[1752575306201,1.2695,2979.6,2979.5,0.001]
[1752575306385,6.3605,2979.6,2979.5,0.001]
[1752575306748,6.3605,2979.6,2979.5,3.35726783]
[1752575306944,0.002,2979.8,2979.5,3.35726783]
[1752575307149,5.2582,2979.7,2979.6,3.35615518]
[1752575307450,5.7319,2979.7,2979.5,3.35721917]
[1752575307992,5.7319,2979.7,2979.5,0.001]
[1752575308197,0.4737,2979.6,2979.5,0.001]
[1752575311603,5.7325,2979.7,2979.5,3.35722188]
[1752575312298,5.7345,2979.7,2979.5,3.3572319]
[1752575314204,0.6435,2979.7,2979.5,3.3572319]
[1752575314373,0.1692,2979.7,2979.6,3.35615518]
[1752575314578,5.2602,2979.7,2979.6,3.35615518]
[1752575314773,5.2602,2979.7,2979.6,10.31552687]
[1752575314774,5.093,2979.7,2979.6,10.31552687]
[1752575317609,0.002,2979.7,2979.6,9.85062687]
[1752575317786,5.092,2979.7,2979.6,9.85062687]
[1752575318194,5.092,2979.7,2979.6,3.35615518]
[1752575319665,5.5663,2979.7,2979.5,0.001]
[1752575319861,0.1672,2979.6,2979.5,19.85173952]
[1752575320074,0.1672,2979.6,2979.5,13.35726783]
[1752575320363,5.2572,2979.6,2979.5,13.35726783]
[1752575320890,0.1672,2979.6,2979.5,13.35726783]
[1752575321090,5.2572,2979.6,2979.5,13.35726783]
[1752575322500,5.7315,2979.6,2979.5,10.001]
[1752575324104,6.5288,2979.6,2979.5,0.001]
[1752575325165,9.88495518,2979.6,2979.5,0.001]
[1752575326567,10.60862191,2979.6,2979.5,0.001]
[1752575327206,4.11548194,2978.6,2978.5,0.001]
[1752575327392,17.26348194,2978.6,2978.5,0.001]
[1752575327772,17.73778194,2978.6,2978.5,0.001]
[1752575328277,34.23225363,2978.6,2978.5,0.001]
[1752575328480,27.73778194,2978.6,2978.5,0.001]
[1752575329581,9.2905,2978.6,2978.5,0.001]
[1752575329781,17.73778194,2978.6,2978.5,0.001]
[1752575335112,17.73978194,2978.6,2978.5,0.001]
[1752575335611,27.73978194,2978.6,2978.5,0.001]
[1752575340320,12.17348194,2978.6,2978.5,0.001]
[1752575340630,17.71278194,2978.6,2978.5,0.001]
[1752575355111,17.26648194,2978.6,2978.5,0.001]
[1752575355334,16.50728194,2978.6,2978.5,0.001]
[1752575355719,11.41528194,2978.6,2978.5,0.001]
[1752575356043,16.50728194,2978.6,2978.5,0.001]
[1752575356265,17.2313111,2978.6,2978.5,0.001]
[1752575356427,16.50728194,2978.6,2978.5,0.001]
[1752575357212,11.41528194,2978.6,2978.5,0.001]
[1752575357418,16.50728194,2978.6,2978.5,0.001]
[1752575357823,13.15,2978.6,2978.5,0.001]
[1752575358027,16.50728194,2978.6,2978.5,0.001]
[1752575358223,8.058,2978.6,2978.5,0.001]
[1752575358446,13.15,2978.6,2978.5,0.001]
[1752575358743,8.058,2978.6,2978.5,0.001]
[1752575359049,13.15,2978.6,2978.5,0.001]
[1752575359342,8.058,2978.6,2978.5,0.001]
[1752575359546,13.15,2978.6,2978.5,0.001]
[1752575360263,8.058,2978.6,2978.5,0.001]
[1752575360567,13.15,2978.6,2978.5,0.001]
[1752575360770,8.058,2978.6,2978.5,0.001]
[1752575361064,13.15,2978.6,2978.5,0.001]
[1752575362182,16.50728194,2978.6,2978.5,0.001]
[1752575363570,16.95358194,2978.6,2978.5,0.001]
[1752575365636,16.50728194,2978.6,2978.5,0.001]
[1752575367073,16.95358194,2978.6,2978.5,0.001]
[1752575367262,13.5963,2978.6,2978.5,0.001]
[1752575367590,13.15,2978.6,2978.5,0.001]
[1752575369350,16.50728194,2978.6,2978.5,0.001]
[1752575369849,13.15,2978.6,2978.5,0.001]
[1752575370230,16.50728194,2978.6,2978.5,0.001]
[1752575370844,16.96818194,2978.6,2978.5,0.001]
[1752575371439,17.73348194,2978.6,2978.5,0.001]
[1752575371780,18.45804239,2978.6,2978.5,0.001]
[1752575376095,17.99714239,2978.6,2978.5,0.001]
[1752575376596,18.45804239,2978.6,2978.5,0.001]
[1752575379086,13.36604239,2978.6,2978.5,0.001]
[1752575379290,18.45804239,2978.6,2978.5,0.001]
[1752575380164,13.36604239,2978.6,2978.5,0.001]
[1752575380369,18.45804239,2978.6,2978.5,0.001]
[1752575387133,12.90514239,2978.6,2978.5,0.001]
[1752575387424,17.23184239,2978.6,2978.5,0.001]
[1752575387922,17.69274239,2978.6,2978.5,0.001]
[1752575388221,12.13984239,2978.6,2978.5,0.001]
[1752575388403,17.23184239,2978.6,2978.5,0.001]
[1752575390206,12.13984239,2978.6,2978.5,0.001]
[1752575390418,8.78256045,2978.6,2978.5,0.001]
[1752575390735,8.78256045,2978.6,2978.5,0.4536]
[1752575390736,16.50728194,2978.6,2978.5,0.4536]
[1752575391533,16.50728194,2978.6,2978.5,0.001]
[1752575392020,17.23162244,2978.6,2978.5,0.001]
[1752575393019,16.50728194,2978.6,2978.5,0.001]
[1752575393406,17.76558194,2978.6,2978.5,0.001]
[1752575395531,16.50728194,2978.6,2978.5,0.001]
[1752575395905,11.41528194,2978.6,2978.5,0.001]
[1752575396111,16.50728194,2978.6,2978.5,0.001]
[1752575397224,11.41528194,2978.6,2978.5,0.001]
[1752575397536,16.50628194,2978.6,2978.5,0.4536]
[1752575400036,16.50628194,2978.6,2978.5,0.001]
[1752575404524,11.41528194,2978.6,2978.5,0.001]
[1752575404726,11.41528194,2978.6,2978.5,0.452]
[1752575405048,16.50628194,2978.6,2978.5,0.452]
[1752575405341,13.149,2978.6,2978.5,0.452]